fUSD/lending_fUSD_20250421
["ID","MTS","AMOUNT","RATE_DAILY","PERIOD"]
[358494518,1745209865893,-258.51857787,0.00059619,15]
[358494519,1745209865902,-136.8572722,0.00065753,120]
[358494520,1745209865914,-298.12608553,0.00065753,120]
[358494521,1745209865941,-90.16664227,0.00065753,120]
[358494522,1745209865951,-110.65292859,0.00066301,120]
[358494523,1745209865960,-500.0,0.00066301,120]
[358494524,1745209865969,-276.68040728,0.00066301,120]
[358494525,1745209865981,-223.31959272,0.00066301,120]
[358494526,1745209865990,-741.4,0.00066301,120]
[358494527,1745209866001,-500.0,0.00066301,120]
[358494528,1745209866014,-80.52410722,0.00066301,120]
[358494529,1745209866025,-419.47589278,0.00066301,120]
[358494530,1745209866035,-500.0,0.00066301,12]
[358494531,1745209866045,-100.71113261,0.00066301,120]
[358494532,1745209866057,-331.305,0.00066301,120]
[358494533,1745209866141,-173.72,0.00056557,10]
[358494534,1745209866151,-153.0,0.00063379,60]
[358494535,1745209866161,-383.93386739,0.00066301,120]
[358494536,1745209866171,-661.79,0.00066301,120]
[358494537,1745209866180,-500.0,0.00066301,120]
[358494538,1745209866190,-706.36,0.00066301,120]
[358494539,1745209866199,-500.0,0.00066301,14]
[358494540,1745209866209,-583.01943316,0.00066301,30]
[358494541,1745209866218,-1690.23,0.00066301,120]
[358494542,1745209866228,-500.0,0.00066301,120]
[358494543,1745209866238,-396.39641454,0.00066301,120]
[358494544,1745209866811,-1176.41122513,0.00062475,15]
[358494545,1745209866822,-103.60358546,0.00066301,120]
[358494546,1745209866832,-24.52515941,0.00066301,120]
[358494547,1745209866852,-475.47484059,0.00066301,120]
[358494548,1745209866862,-787.95,0.00066301,120]
[358494549,1745209866871,-500.0,0.00066301,120]
[358494550,1745209866881,-579.28382361,0.00066301,120]
[358494551,1745209866890,-500.0,0.00066301,120]
[358494552,1745209866899,-1111.6,0.00066301,120]
[358494553,1745209866909,-296.20771813,0.00066301,120]
[358494568,1745210582412,3872.2920909,0.00032,60]
[358494571,1745210934375,-2155.0,0.00045,120]
[358494617,1745211031431,-340.95554226,0.00039216,2]
[358494618,1745211031440,-178.01742583,0.00039216,2]
[358494619,1745211031450,-266.72601654,0.000393,2]
[358494620,1745211031459,-2700.0,0.00039316,2]
[358494621,1745211031470,-170.17,0.00039316,2]
[358494622,1745211031479,-151.0,0.0004141,5]
[358494623,1745211031489,-151.0,0.0004141,5]
[358494624,1745211031498,-300.0,0.00046575,20]
[358494625,1745211031508,-550.0,0.00048399,5]
[358494626,1745211031517,-152.25,0.000484,45]
[358494627,1745211031526,-152.25,0.000484,45]
[358494628,1745211031535,-152.25,0.000484,45]
[358494629,1745211031546,-152.25,0.000484,45]
[358494630,1745211031556,-152.25,0.000484,45]
[358494631,1745211031565,-152.25,0.000484,45]
[358494632,1745211031575,-215.46706819,0.000499,22]
[358494633,1745211031585,-8375.1,0.000499,2]
[358494634,1745211031595,-150.99,0.000499,2]
[358494635,1745211031605,-1007.87,0.000499,2]
[358494636,1745211031614,-2208.69,0.000499,30]
[358494637,1745211031623,-1126.67,0.000499,2]
[358494638,1745211031633,-1932.53777244,0.0005,120]
[358494639,1745211031643,-2449.97021063,0.00050496,2]
[358494640,1745211031653,-770.0,0.00051337,10]
[358494641,1745211031662,-154.0,0.00052,120]
[358494642,1745211031672,-562.0,0.00054454,10]
[358494643,1745211031681,-304.83057417,0.000547,103]
[358494644,1745211031700,-320.72742583,0.000547,103]
[358494645,1745211031709,-152.25,0.000547,54]
[358494646,1745211031719,-152.25,0.000547,54]
[358494647,1745211031729,-152.25,0.000547,54]
[358494649,1745211031738,-152.25,0.000547,54]
[358494651,1745211031748,-152.25,0.000547,54]
[358494653,1745211031757,-152.25,0.000547,54]
[358494654,1745211031766,-152.25,0.000547,54]
[358494655,1745211031777,-152.25,0.000547,54]
[358494657,1745211031786,-152.25,0.000547,54]
[358494659,1745211031795,-152.25,0.000547,54]
[358494661,1745211031804,-152.25,0.000547,54]
[358494663,1745211031814,-152.25,0.000547,54]
[358494665,1745211031824,-2346.39997417,0.000548,120]
[358494667,1745211031839,-24627.52648816,0.000548,120]
[358494669,1745211031848,-151.0,0.00055,120]
[358494671,1745211031858,-154.0,0.00056,120]
[358494673,1745211031867,-267.39602884,0.00056265,120]
[358494675,1745211031877,-430.8398464,0.00057,120]
[358494677,1745211031886,-1005.76,0.00057646,30]
[358494679,1745211031895,-152.86,0.00057773,120]
[358494681,1745211031905,-453.46,0.00057961,30]
[358494683,1745211031914,-1560.16,0.00057961,30]
[358494685,1745211031923,-453.46,0.00057961,30]
[358494687,1745211031932,-453.46,0.00057961,30]
[358494689,1745211031941,-453.46,0.00057961,30]
[358494691,1745211031950,-453.46,0.00057961,30]
[358494693,1745211031959,-609.62,0.00057961,30]
[358494695,1745211031968,-424.38734791,0.00058471,120]
[358494697,1745211031977,-21303.58384581,0.00058472,2]
[358494706,1745211032089,-2596.41615419,0.00058472,2]
[358494707,1745211032098,-166.66,0.00059275,2]
[358494708,1745211032107,-398.34,0.00059615,2]
[358494709,1745211032116,-163.99,0.0006,120]
[358494710,1745211032126,-154.0,0.0006,120]
[358494711,1745211032135,-150.0,0.0006,2]
[358494712,1745211032144,-800.0,0.00060171,120]
[358494713,1745211032153,-157.26,0.00060361,120]
[358494714,1745211032163,-2363.6972,0.00060622,2]
[358494715,1745211032172,-1000.0,0.00060628,120]
[358494716,1745211032181,-13240.0864219,0.00060712,2]
[358494717,1745211032191,-152.25,0.00061,63]
[358494718,1745211032201,-152.25,0.00061,63]
[358494719,1745211032210,-152.25,0.00061,63]
[358494720,1745211032220,-152.25,0.00061,63]
[358494721,1745211032229,-152.25,0.00061,63]
[358494722,1745211032239,-152.25,0.00061,63]
[358494723,1745211032248,-152.25,0.00061,63]
[358494724,1745211032257,-152.25,0.00061,63]
[358494725,1745211032267,-152.25,0.00061,63]
[358494726,1745211032276,-152.25,0.00061,63]
[358494727,1745211032286,-152.25,0.00061,63]
[358494728,1745211032296,-152.25,0.00061,63]
[358494729,1745211032305,-215.46706819,0.0006115,29]
[358494730,1745211032315,-961.27,0.00061401,30]
[358494731,1745211032324,-166.66,0.00061721,2]
[358494732,1745211032333,-398.34,0.00061879,2]
[358494733,1745211032343,-2000.0,0.000619,90]
[358494734,1745211032353,-200.0,0.00062683,2]
[358494735,1745211032362,-1000.0,0.00062913,2]
[358494736,1745211032372,-470.56449007,0.00062913,15]
[358494737,1745211032383,-5571.0945,0.00062914,2]
[358494738,1745211032396,-2500.0,0.00062914,2]
[358494739,1745211032405,-1000.0,0.00063012,2]
[358494740,1745211032414,-1000.0,0.00063012,2]
[358494741,1745211032423,-1000.0,0.00063012,2]
[358494742,1745211032434,-500.0,0.00063013,120]
[358494743,1745211032443,-500.0,0.00063013,120]
[358494744,1745211032452,-999.0,0.00063013,120]
[358494745,1745211032463,-500.0,0.00063013,120]
[358494746,1745211032473,-553.37,0.00063013,120]
[358494747,1745211032482,-500.0,0.00063013,120]
[358494748,1745211032491,-500.0,0.00063013,120]
[358494749,1745211032500,-500.0,0.00063013,120]
[358494750,1745211032509,-500.0,0.00063013,120]
[358494751,1745211032518,-500.0,0.00063013,120]
[358494752,1745211032528,-500.0,0.00063013,120]
[358494753,1745211032537,-602.9,0.00063013,120]
[358494754,1745211032547,-500.0,0.00063013,120]
[358494755,1745211032557,-500.0,0.00063013,120]
[358494756,1745211032566,-500.0,0.00063013,120]
[358494757,1745211032575,-646.1876924,0.00063013,120]
[358494758,1745211032585,-496.97087859,0.00063013,120]
[358494759,1745211032594,-500.0,0.00063013,120]
[358494760,1745211032603,-556.05,0.00063013,120]
[358494761,1745211032613,-500.0,0.00063013,120]
[358494762,1745211032622,-500.0,0.00063013,120]
[358494763,1745211032632,-570.89289938,0.00063013,120]
[358494764,1745211032641,-500.0,0.00063013,14]
[358494765,1745211032651,-209.69741134,0.00063013,120]
[358494766,1745211032660,-500.0,0.00063013,120]
[358494767,1745211032670,-500.0,0.00063013,120]
[358494768,1745211032680,-500.0,0.00063013,120]
[358494769,1745211032689,-500.0,0.00063013,120]
[358494770,1745211032699,-500.0,0.00063013,120]
[358494771,1745211032708,-546.57047041,0.00063013,120]
[358494772,1745211032718,-459.29205301,0.00063013,120]
[358494773,1745211032727,-500.0,0.00063013,120]
[358494774,1745211032737,-500.0,0.00063013,120]
[358494775,1745211032746,-500.0,0.00063013,120]
[358494776,1745211032756,-500.0,0.00063013,120]
[358494777,1745211032766,-500.0,0.00063013,120]
[358494778,1745211032775,-521.99744672,0.00063013,120]
[358494779,1745211032784,-619.68236397,0.00063013,120]
[358494780,1745211032794,-238.39287012,0.00063013,120]
[358494781,1745211032803,-500.0,0.00063013,120]
[358494782,1745211032812,-527.21538115,0.00063013,120]
[358494783,1745211032821,-500.0,0.00063013,120]
[358494784,1745211032831,-500.0,0.00063013,120]
[358494785,1745211032840,-500.0,0.00063013,120]
[358494786,1745211032850,-500.0,0.00063013,120]
[358494787,1745211033012,-1618.94,0.00063013,120]
[358494788,1745211033021,-500.0,0.00063013,120]
[358494789,1745211033031,-534.22794685,0.00063013,120]
[358494790,1745211033041,-500.0,0.00063013,120]
[358494791,1745211033050,-512.69045638,0.00063013,120]
[358494792,1745211033060,-500.0,0.00063013,120]
[358494793,1745211033070,-533.74507245,0.00063013,120]
[358494794,1745211033079,-500.0,0.00063013,120]
[358494795,1745211033089,-500.0,0.00063013,30]
[358494796,1745211033098,-500.0,0.00063013,120]
[358494797,1745211033108,-328.37236495,0.00063013,120]
[358494798,1745211033118,-500.0,0.00063013,120]
[358494799,1745211033127,-517.07906823,0.00063013,120]
[358494800,1745211033138,-500.0,0.00063013,120]
[358494801,1745211033147,-520.56931947,0.00063013,120]
[358494802,1745211033157,-500.0,0.00063013,120]
[358494803,1745211033166,-537.94666395,0.00063013,120]
[358494804,1745211033176,-500.0,0.00063013,120]
[358494805,1745211033186,-500.0,0.00063013,120]
[358494806,1745211033195,-500.0,0.00063013,120]
[358494807,1745211033204,-362.18918811,0.00063013,120]
[358494808,1745211033214,-225.29673702,0.00063013,120]
[358494809,1745211033224,-1267.67,0.00063013,120]
[358494810,1745211033233,-500.0,0.00063013,120]
[358494811,1745211033243,-599.22,0.00063013,120]
[358494812,1745211033253,-500.0,0.00063013,120]
[358494813,1745211033262,-500.0,0.00063013,120]
[358494814,1745211033272,-323.95281296,0.00063013,120]
[358494815,1745211033282,-1571.46,0.00063013,120]
[358494816,1745211033291,-780.05,0.00063013,120]
[358494817,1745211033301,-496.53646598,0.00063013,120]
[358494818,1745211033310,-500.0,0.00063013,8]
[358494819,1745211033319,-1385.91,0.00063013,120]
[358494820,1745211033329,-513.86000972,0.00063013,120]
[358494821,1745211033338,-597.11235033,0.00063013,120]
[358494822,1745211033348,-512.4,0.00063013,120]
[358494823,1745211033358,-309.860194,0.00063013,120]
[358494824,1745211033367,-500.0,0.00063013,120]
[358494825,1745211033378,-304.14,0.00063013,120]
[358494826,1745211033391,-500.0,0.00063013,120]
[358494827,1745211033400,-500.0,0.00063013,2]
[358494828,1745211033409,-500.0,0.00063013,120]
[358494829,1745211033419,-500.0,0.00063013,120]
[358494830,1745211033429,-450.96173492,0.00063013,120]
[358494831,1745211033439,-500.0,0.00063013,120]
[358494832,1745211033449,-611.97,0.00063013,120]
[358494833,1745211033460,-500.0,0.00063013,120]
[358494834,1745211033470,-529.77,0.00063013,120]
[358494835,1745211033481,-229.97437728,0.00063013,120]
[358494836,1745211033491,-865.19,0.00063013,120]
[358494837,1745211033501,-500.0,0.00063013,120]
[358494838,1745211033511,-1231.0,0.00063014,120]
[358494839,1745211033521,-489.0,0.00063014,120]
[358494840,1745211033531,-500.0,0.00063014,120]
[358494841,1745211033540,-500.0,0.00063014,120]
[358494842,1745211033550,-500.0,0.00063014,120]
[358494843,1745211033560,-500.0,0.00063014,120]
[358494844,1745211033569,-500.0,0.00063014,120]
[358494845,1745211033578,-497.81734624,0.00063014,120]
[358494846,1745211033587,-500.0,0.00063014,120]
[358494847,1745211033598,-500.0,0.00063014,120]
[358494848,1745211033608,-500.0,0.00063014,120]
[358494849,1745211033619,-500.0,0.00063014,120]
[358494850,1745211033629,-500.0,0.00063014,120]
[358494851,1745211033639,-500.0,0.00063014,120]
[358494852,1745211033649,-500.0,0.00063014,120]
[358494853,1745211033659,-500.0,0.00063014,120]
[358494854,1745211033670,-500.0,0.00063014,120]
[358494855,1745211033680,-500.0,0.00063014,120]
[358494856,1745211033690,-500.0,0.00063014,120]
[358494857,1745211033700,-500.0,0.00063014,120]
[358494858,1745211033710,-500.0,0.00063014,120]
[358494859,1745211033720,-500.0,0.00063014,120]
[358494860,1745211033731,-500.0,0.00063014,120]
[358494861,1745211033742,-500.0,0.00063014,120]
[358494862,1745211033752,-500.0,0.00063014,120]
[358494863,1745211033763,-500.0,0.00063014,120]
[358494864,1745211033773,-500.0,0.00063014,120]
[358494865,1745211033783,-500.0,0.00063014,120]
[358494866,1745211033793,-500.0,0.00063014,120]
[358494867,1745211033803,-350.00000001,0.00063014,120]
[358494868,1745211033813,-150.0,0.00063014,120]
[358494869,1745211033822,-150.0,0.00063014,120]
[358494870,1745211033832,-150.0,0.00063014,120]
[358494871,1745211033842,-441.70864739,0.00063073,10]
[358494872,1745211033851,-948.0,0.00063182,2]
[358494873,1745211033861,-14937.3638,0.00063461,2]
[358494874,1745211033870,-169.70041414,0.0006356,58]
[358494875,1745211033880,-813.1,0.0006356,120]
[358494876,1745211033890,-2471.84,0.0006356,2]
[358494877,1745211033900,-456.07264866,0.0006356,120]
[358494878,1745211033909,-387.70729828,0.0006356,120]
[358494879,1745211033918,-500.0,0.0006356,120]
[358494880,1745211033928,-1140.79,0.0006356,120]
[358494881,1745211033938,-500.0,0.0006356,118]
[358494882,1745211033948,-500.0,0.0006356,120]
[358494883,1745211033957,-500.0,0.0006356,120]
[358494884,1745211033968,-500.0,0.00063561,120]
[358494885,1745211033978,-222.14516363,0.00063561,120]
[358494886,1745211033987,-521.80369776,0.00063561,120]
[358494887,1745211033997,-553.37,0.00063561,120]
[358494888,1745211034007,-500.0,0.00063561,120]
[358494889,1745211034016,-602.9,0.00063561,120]
[358494890,1745211034026,-500.0,0.00063561,120]
[358494891,1745211034035,-500.0,0.00063561,120]
[358494892,1745211034043,-559.41776247,0.00063561,120]
[358494893,1745211034053,-556.05,0.00063561,120]
[358494894,1745211034063,-615.73623825,0.00063561,120]
[358494895,1745211034072,-500.0,0.00063561,14]
[358494896,1745211034082,-621.48800776,0.00063561,120]
[358494897,1745211034092,-500.0,0.00063561,120]
[358494898,1745211034101,-500.0,0.00063561,120]
[358494899,1745211034111,-500.0,0.00063561,120]
[358494900,1745211034121,-500.0,0.00063561,120]
[358494901,1745211034130,-500.0,0.00063561,120]
[358494902,1745211034140,-510.01450768,0.00063561,120]
[358494903,1745211034150,-543.78238326,0.00063561,120]
[358494904,1745211034159,-500.0,0.00063561,120]
[358494905,1745211034169,-500.0,0.00063561,120]
[358494906,1745211034179,-1618.94,0.00063561,120]
[358494907,1745211034189,-500.0,0.00063561,120]
[358494908,1745211034199,-500.0,0.00063561,120]
[358494909,1745211034209,-500.0,0.00063561,120]
[358494910,1745211034219,-500.0,0.00063561,120]
[358494911,1745211034229,-1267.67,0.00063561,120]
[358494912,1745211034239,-522.66628055,0.00063561,120]
[358494913,1745211034249,-500.0,0.00063561,120]
[358494914,1745211034259,-417.83836655,0.00063561,120]
[358494915,1745211034269,-1571.46,0.00063561,120]
[358494916,1745211034278,-780.05,0.00063561,120]
[358494917,1745211034289,-500.0,0.00063561,8]
[358494918,1745211034298,-1385.91,0.00063561,120]
[358494919,1745211034308,-512.4,0.00063561,120]
[358494920,1745211034318,-500.0,0.00063561,120]
[358494921,1745211034327,-500.0,0.00063561,120]
[358494922,1745211034337,-500.0,0.00063561,2]
[358494923,1745211034346,-611.97,0.00063561,120]
[358494924,1745211034356,-529.77,0.00063561,120]
[358494925,1745211034367,-575.20173136,0.00063561,120]
[358494926,1745211034377,-865.19,0.00063561,120]
[358494927,1745211034390,-1231.0,0.00063562,120]
[358494928,1745211034399,-489.0,0.00063562,120]
[358494929,1745211034409,-500.0,0.00063562,120]
[358494930,1745211034419,-150.0,0.00063562,120]
[358494931,1745211034429,-150.0,0.00063562,120]
[358494932,1745211034438,-154.0,0.00064,120]
[358494933,1745211034448,-1905.29,0.00064098,30]
[358494934,1745211034458,-503.81515436,0.00064107,3]
[358494935,1745211034468,-500.0,0.00064108,120]
[358494936,1745211034477,-815.86,0.00064108,120]
[358494937,1745211034487,-500.0,0.00064108,120]
[358494938,1745211034497,-1530.03,0.00064108,120]
[358494939,1745211034507,-681.58,0.00064108,120]
[358494940,1745211034516,-642.36,0.00064108,120]
[358494941,1745211034528,-500.0,0.00064108,120]
[358494942,1745211034539,-561.80547083,0.00064108,120]
[358494943,1745211034551,-547.64,0.00064108,120]
[358494944,1745211034563,-500.0,0.00064108,120]
[358494945,1745211034576,-500.0,0.00064108,120]
[358494946,1745211034587,-500.0,0.00064108,120]
[358494947,1745211034597,-500.0,0.00064108,120]
[358494948,1745211034607,-167.35159671,0.00064108,120]
[358494949,1745211034617,-500.0,0.00064108,120]
[358494950,1745211034629,-500.0,0.00064108,120]
[358494951,1745211034640,-500.0,0.00064108,120]
[358494952,1745211034652,-368.42644452,0.00064108,20]
[358494953,1745211034664,-556.52182944,0.00064108,120]
[358494954,1745211034675,-500.0,0.00064108,120]
[358494955,1745211034687,-500.0,0.00064108,120]
[358494956,1745211034699,-500.0,0.00064108,120]
[358494957,1745211034711,-500.0,0.00064108,120]
[358494958,1745211034723,-500.0,0.00064108,120]
[358494959,1745211034734,-500.0,0.00064108,12]
[358494960,1745211034746,-500.0,0.00064108,120]
[358494961,1745211034756,-500.0,0.00064108,120]
[358494962,1745211034767,-430.57822498,0.00064108,120]
[358494963,1745211034776,-1932.37,0.00064108,7]
[358494964,1745211034787,-500.0,0.00064108,120]
[358494965,1745211034799,-601.7052493,0.00064108,120]
[358494966,1745211034810,-558.13,0.00064108,120]
[358494967,1745211034823,-500.0,0.00064108,30]
[358494968,1745211034835,-545.84,0.00064108,120]
[358494969,1745211034847,-461.30633276,0.00064108,120]
[358494970,1745211034859,-787.38,0.00064108,120]
[358494971,1745211034870,-500.0,0.00064108,120]
[358494972,1745211034881,-500.0,0.00064108,120]
[358494973,1745211034892,-710.7,0.00064108,120]
[358494974,1745211034903,-500.0,0.00064108,120]
[358494975,1745211034914,-507.1,0.00064108,120]
[358494976,1745211034924,-599.88,0.00064108,120]
[358494977,1745211034934,-813.1,0.00064108,120]
[358494978,1745211034946,-580.66,0.00064108,120]
[358494979,1745211034958,-547.42,0.00064108,120]
[358494980,1745211034968,-2471.84,0.00064108,2]
[358494981,1745211034980,-830.54,0.00064108,120]
[358494982,1745211034991,-500.0,0.00064108,120]
[358494983,1745211035001,-592.70849031,0.00064108,120]
[358494984,1745211035012,-1140.79,0.00064108,120]
[358494985,1745211035023,-1037.4,0.00064108,120]
[358494986,1745211035034,-500.0,0.00064109,120]
[358494987,1745211035044,-553.37,0.00064109,120]
[358494988,1745211035056,-500.0,0.00064109,120]
[358494989,1745211035067,-602.9,0.00064109,120]
[358494990,1745211035079,-500.0,0.00064109,120]
[358494991,1745211035090,-500.0,0.00064109,120]
[358494992,1745211035100,-556.05,0.00064109,120]
[358494993,1745211035111,-500.0,0.00064109,14]
[358494994,1745211035122,-500.0,0.00064109,120]
[358494995,1745211035132,-500.0,0.00064109,120]
[358494996,1745211035143,-500.0,0.00064109,120]
[358494997,1745211035153,-500.0,0.00064109,120]
[358494998,1745211035163,-500.0,0.00064109,120]
[358494999,1745211035173,-373.61822784,0.00064109,120]
[358495000,1745211035183,-500.0,0.00064109,120]
[358495001,1745211035194,-1618.94,0.00064109,120]
[358495002,1745211035206,-500.0,0.00064109,120]
[358495003,1745211035219,-500.0,0.00064109,120]
[358495004,1745211035229,-500.0,0.00064109,120]
[358495005,1745211035239,-500.0,0.00064109,120]
[358495006,1745211035249,-1267.67,0.00064109,120]
[358495007,1745211035258,-411.7818943,0.00064109,120]
[358495008,1745211035268,-1571.46,0.00064109,120]
[358495009,1745211035278,-780.05,0.00064109,120]
[358495010,1745211035288,-500.0,0.00064109,8]
[358495011,1745211035299,-1385.91,0.00064109,120]
[358495012,1745211035310,-512.4,0.00064109,120]
[358495013,1745211035321,-500.0,0.00064109,120]
[358495014,1745211035333,-178.16470497,0.00064109,120]
[358495015,1745211035343,-500.0,0.00064109,2]
[358495016,1745211035353,-611.97,0.00064109,120]
[358495017,1745211035364,-529.77,0.00064109,120]
[358495018,1745211035374,-865.19,0.00064109,120]
[358495019,1745211035384,-1231.0,0.0006411,120]
[358495020,1745211035395,-489.0,0.0006411,120]
[358495021,1745211035406,-500.0,0.0006411,120]
[358495022,1745211035416,-150.0,0.0006411,120]
[358495023,1745211035426,-200.0,0.0006411,120]
[358495024,1745211035437,-398.34,0.00064143,2]
[358495025,1745211035447,-166.66,0.00064166,2]
[358495026,1745211035458,-470.56449005,0.00064191,15]
[358495027,1745211035470,-213.83,0.00064294,120]
[358495028,1745211035481,-1500.000001,0.000645,120]
[358495029,1745211035492,-5772.31251632,0.000645,120]
[358495030,1745211035502,-250.0,0.00064555,120]
[358495031,1745211035513,-1634.11480421,0.00064556,15]
[358495032,1745211035524,-500.0,0.00064557,2]
[358495033,1745211035534,-22665.0206005,0.00064646,4]
[358495034,1745211035544,-500.0,0.00064656,120]
[358495035,1745211035555,-815.86,0.00064656,120]
[358495036,1745211035565,-500.0,0.00064656,120]
[358495037,1745211035575,-1530.03,0.00064656,120]
[358495038,1745211035586,-681.58,0.00064656,120]
[358495039,1745211035598,-642.36,0.00064656,120]
[358495040,1745211035608,-547.64,0.00064656,120]
[358495041,1745211035619,-593.53126621,0.00064656,120]
[358495042,1745211035630,-500.0,0.00064656,120]
[358495043,1745211035641,-500.0,0.00064656,120]
[358495044,1745211035652,-500.0,0.00064656,12]
[358495045,1745211035663,-1932.37,0.00064656,7]
[358495046,1745211035674,-558.13,0.00064656,120]
[358495047,1745211035685,-545.84,0.00064656,120]
[358495048,1745211035696,-787.38,0.00064656,120]
[358495049,1745211035706,-500.0,0.00064656,120]
[358495050,1745211035717,-500.0,0.00064656,120]
[358495051,1745211035728,-710.7,0.00064656,120]
[358495052,1745211035738,-500.0,0.00064656,120]
[358495053,1745211035748,-507.1,0.00064656,120]
[358495054,1745211035758,-599.88,0.00064656,120]
[358495055,1745211035769,-813.1,0.00064656,120]
[358495056,1745211035780,-580.66,0.00064656,120]
[358495057,1745211035791,-547.42,0.00064656,120]
[358495058,1745211035802,-2471.84,0.00064656,2]
[358495059,1745211035813,-830.54,0.00064656,120]
[358495060,1745211035823,-1140.79,0.00064656,120]
[358495061,1745211035834,-1037.4,0.00064656,120]
[358495062,1745211035846,-500.0,0.00064657,120]
[358495063,1745211035856,-553.37,0.00064657,120]
[358495064,1745211035867,-500.0,0.00064657,120]
[358495065,1745211035878,-602.9,0.00064657,120]
[358495066,1745211035888,-500.0,0.00064657,120]
[358495067,1745211035900,-500.0,0.00064657,120]
[358495068,1745211035911,-556.05,0.00064657,120]
[358495069,1745211035921,-500.0,0.00064657,14]
[358495070,1745211035932,-500.0,0.00064657,120]
[358495071,1745211035943,-500.0,0.00064657,120]
[358495072,1745211035953,-500.0,0.00064657,120]
[358495073,1745211035963,-500.0,0.00064657,120]
[358495074,1745211035974,-500.0,0.00064657,120]
[358495075,1745211035985,-500.0,0.00064657,120]
[358495076,1745211035996,-1618.94,0.00064657,120]
[358495077,1745211036006,-500.0,0.00064657,120]
[358495078,1745211036017,-290.54373322,0.00064657,120]
[358495079,1745211036028,-540.82874508,0.00064657,120]
[358495080,1745211036038,-500.0,0.00064657,120]
[358495081,1745211036049,-1267.67,0.00064657,120]
[358495082,1745211036059,-1571.46,0.00064657,120]
[358495083,1745211036070,-780.05,0.00064657,120]
[358495084,1745211036081,-500.0,0.00064657,8]
[358495085,1745211036092,-1385.91,0.00064657,120]
[358495086,1745211036102,-512.4,0.00064657,120]
[358495087,1745211036112,-500.0,0.00064657,120]
[358495088,1745211036125,-500.0,0.00064657,2]
[358495089,1745211036136,-611.97,0.00064657,120]
[358495090,1745211036147,-529.77,0.00064657,120]
[358495091,1745211036157,-865.19,0.00064657,120]
[358495092,1745211036167,-1231.0,0.00064658,120]
[358495093,1745211036177,-489.0,0.00064658,120]
[358495094,1745211036187,-500.0,0.00064658,120]
[358495095,1745211036197,-231.52508164,0.00064658,120]
[358495096,1745211036208,-2000.0,0.000647,120]
[358495097,1745211036392,-200.0,0.00064771,120]
[358495098,1745211036402,-629.35,0.00064817,2]
[358495099,1745211036411,-635.822,0.00065104,120]
[358495100,1745211036421,-22665.0206005,0.00065194,4]
[358495101,1745211036431,-500.0,0.00065204,120]
[358495102,1745211036440,-815.86,0.00065204,120]
[358495103,1745211036450,-517.74497783,0.00065204,120]
[358495104,1745211036460,-1530.03,0.00065204,120]
[358495105,1745211036470,-681.58,0.00065204,120]
[358495106,1745211036480,-642.36,0.00065204,120]
[358495107,1745211036490,-547.64,0.00065204,120]
[358495108,1745211036499,-500.0,0.00065204,120]
[358495109,1745211036508,-500.0,0.00065204,120]
[358495110,1745211036517,-500.0,0.00065204,12]